bitfinex-derivatives/quotes_BTCF0:USTF0_20240903
["timestamp","ask_amount","ask_price","bid_price","bid_amount"]
[1725349572935,0.021,59129.0,59128.0,0.62026703]
[1725349573333,0.021,59129.0,59128.0,0.68791303]
[1725349573537,0.00025359,59134.0,59133.0,0.06764]
[1725349573737,0.00025359,59134.0,59133.0,0.51884]
[1725349575028,0.00025359,59134.0,59133.0,0.51984]
[1725349575432,0.01025359,59134.0,59133.0,0.52815085]
[1725349576140,0.10125359,59134.0,59133.0,0.43084]
[1725349578035,0.24125359,59134.0,59133.0,0.43084]
[1725349579242,0.24125359,59134.0,59133.0,0.07004]
[1725349581134,0.01125359,59134.0,59133.0,0.07004]
[1725349581934,0.01025359,59134.0,59133.0,0.06904]
[1725349582135,0.01025359,59134.0,59133.0,0.07004]
[1725349582744,0.01025359,59134.0,59133.0,0.06904]
[1725349582939,0.01025359,59134.0,59133.0,0.07004]
[1725349583644,0.00025359,59134.0,59133.0,0.07004]
[1725349583848,0.00025359,59134.0,59133.0,0.23378]
[1725349584346,0.00025359,59134.0,59133.0,0.2422742]
[1725349585049,0.00025359,59134.0,59133.0,0.2412742]
[1725349585546,0.00025359,59134.0,59133.0,0.2422742]
[1725349585547,0.00225359,59134.0,59133.0,0.2422742]
[1725349586136,0.00200059,59134.0,59133.0,1.3495942]
[1725349586344,5.9e-07,59134.0,59133.0,1.3495942]
[1725349589942,0.0481,59146.0,59145.0,0.067627]
[1725349590150,0.1681,59146.0,59145.0,0.428827]
[1725349590452,0.12,59146.0,59145.0,0.428827]
[1725349591644,0.12,59146.0,59145.0,0.429827]
[1725349591946,0.35,59146.0,59145.0,0.429827]
[1725349592347,0.35,59146.0,59145.0,0.069027]
[1725349593751,0.35,59146.0,59145.0,0.070027]
[1725349594344,0.12,59146.0,59145.0,0.070027]
[1725349594745,0.12,59146.0,59145.0,0.069027]
[1725349594940,0.12,59146.0,59145.0,0.070027]
[1725349595259,0.12,59146.0,59145.0,0.069027]
[1725349595452,0.12,59146.0,59145.0,0.070027]
[1725349596142,0.12,59146.0,59145.0,0.069027]
[1725349596350,0.12,59146.0,59145.0,0.070027]
[1725349596854,0.12,59146.0,59145.0,0.300027]
[1725349597049,0.32382,59157.0,59152.0,0.067619]
[1725349597050,0.0487,59156.0,59152.0,0.067619]
[1725349597353,0.0487,59156.0,59155.0,0.067615]
[1725349597556,0.1287,59156.0,59155.0,0.298015]
[1725349597948,0.1287,59156.0,59155.0,0.297615]
[1725349598744,0.1287,59156.0,59155.0,0.298615]
[1725349599757,0.1287,59156.0,59155.0,0.299615]
[1725349600247,0.08,59156.0,59155.0,0.299615]
[1725349600447,0.0039,59163.0,59162.0,0.067607]
[1725349600750,0.23,59168.0,59164.0,0.067604]
[1725349600953,0.23,59168.0,59167.0,0.0004]
[1725349600954,0.36,59168.0,59167.0,0.0004]
[1725349601354,0.13,59168.0,59167.0,0.068001]
[1725349602852,0.13,59168.0,59167.0,0.069001]
[1725349603046,0.13,59168.0,59167.0,0.070001]
[1725349604048,0.36,59168.0,59167.0,0.0024]
[1725349605954,0.13,59168.0,59167.0,0.0024]
[1725349606149,0.36,59168.0,59167.0,0.0024]
[1725349607148,1.30464,59168.0,59167.0,0.0024]
[1725349607458,0.01,59168.0,59167.0,0.0024]
[1725349609867,0.0776,59168.0,59167.0,0.0024]
[1725349613756,0.0776,59168.0,59167.0,0.070001]
[1725349613757,0.01,59168.0,59167.0,0.070001]
[1725349615565,0.0776,59168.0,59167.0,0.070001]
[1725349617763,0.3076,59168.0,59167.0,0.070001]
[1725349622262,0.3076,59168.0,59167.0,0.0024]
[1725349626470,0.3076,59168.0,59157.0,0.00415359]
[1725349626471,1.34704,59168.0,59157.0,0.00415359]
[1725349626769,1.34704,59168.0,59157.0,0.00025359]
[1725349626770,0.298012,59158.0,59157.0,0.00025359]
[1725349626970,0.408012,59158.0,59157.0,0.00025359]
[1725349627157,0.915132,59158.0,59157.0,0.00025359]
[1725349627976,0.915132,59158.0,59157.0,0.00125359]
[1725349628465,0.915132,59158.0,59157.0,0.00025359]
[1725349628671,0.915132,59158.0,59157.0,0.00125359]
[1725349629056,0.408012,59158.0,59157.0,0.00125359]
[1725349629273,0.408012,59158.0,59157.0,0.00225359]
[1725349630680,0.408012,59158.0,59157.0,0.00125359]
[1725349630967,0.409012,59158.0,59157.0,0.00225359]
[1725349631370,0.410012,59158.0,59157.0,0.00225359]
[1725349632971,1.517132,59158.0,59148.0,0.0039]
[1725349633169,0.068023,59149.0,59147.0,0.00417617]
[1725349633480,0.23,59148.0,59145.0,0.067626]
[1725349633778,0.0004,59146.0,59145.0,0.067626]
[1725349633971,0.1104,59146.0,59145.0,0.067626]
[1725349634372,0.1084,59146.0,59145.0,0.067626]
[1725349635066,0.1094,59146.0,59145.0,0.068626]
[1725349635266,0.1104,59146.0,59145.0,0.068626]
[1725349636165,0.1104,59146.0,59145.0,0.07286132]
[1725349636666,0.178025,59146.0,59145.0,0.001]
[1725349641781,0.685265,59146.0,59145.0,0.001]
[1725349641973,0.75289,59146.0,59145.0,0.001]
[1725349642380,0.067631,59141.0,59140.0,0.00025359]
[1725349642682,0.407631,59141.0,59140.0,0.00025359]
[1725349643472,0.475262,59141.0,59140.0,0.00025359]
[1725349644175,0.476262,59141.0,59140.0,0.00025359]
[1725349644980,0.479262,59141.0,59140.0,0.00025359]
[1725349645783,0.840062,59141.0,59140.0,0.00025359]
[1725349648180,0.84429337,59141.0,59140.0,0.00025359]
[1725349650677,0.840062,59141.0,59140.0,0.00025359]
[1725349653279,0.772431,59141.0,59140.0,0.00025359]
[1725349655293,0.542431,59141.0,59140.0,0.00025359]
[1725349655590,0.7048,59141.0,59140.0,0.06788559]
[1725349656992,0.344,59141.0,59140.0,0.06788559]
[1725349662084,0.344,59141.0,59140.0,0.00025359]
[1725349662294,0.411631,59141.0,59140.0,0.00025359]
[1725349663087,1.518911,59141.0,59140.0,0.00025359]
[1725349663490,0.918911,59141.0,59140.0,0.00025359]
[1725349665090,1.518911,59141.0,59140.0,0.00025359]
[1725349665287,1.618911,59141.0,59140.0,0.00025359]
[1725349665588,1.018911,59141.0,59140.0,0.00025359]
[1725349665796,0.918911,59141.0,59140.0,0.00025359]
[1725349666893,0.928911,59141.0,59140.0,0.00025359]
[1725349667990,0.067638,59135.0,59134.0,0.0039]
[1725349668190,0.067644,59130.0,59129.0,0.0965]
[1725349668386,0.067649,59125.0,59124.0,0.00417097]
[1725349668593,0.067649,59125.0,59121.0,0.05028291]
[1725349668594,0.067652,59123.0,59121.0,0.05028291]
[1725349668781,0.067652,59123.0,59120.0,0.3608]
[1725349668782,0.23,59121.0,59120.0,0.3608]
[1725349668985,0.35,59121.0,59120.0,0.3608]
[1725349669189,0.345,59121.0,59120.0,0.3608]
[1725349669691,0.345,59121.0,59120.0,0.36499552]
[1725349669692,0.337,59121.0,59120.0,0.36499552]
[1725349670200,0.409654,59121.0,59120.0,0.3608]
[1725349670801,0.342,59121.0,59115.0,0.00025359]
[1725349670999,0.29766,59116.0,59115.0,0.00025359]
[1725349671301,0.40766,59116.0,59115.0,0.00025359]
[1725349672294,0.40766,59116.0,59115.0,0.00425359]
[1725349673284,0.76846,59116.0,59115.0,0.00425359]
[1725349677500,0.77264246,59116.0,59115.0,0.00425359]
[1725349679302,0.77304246,59116.0,59115.0,0.00425359]
[1725349683295,0.7012,59116.0,59115.0,0.00425359]
[1725349684307,0.7012,59116.0,59115.0,0.07191459]
[1725349684510,0.3404,59116.0,59115.0,0.07191459]
[1725349684994,0.1104,59116.0,59115.0,0.07191459]
[1725349686202,0.1104,59116.0,59115.0,0.07609414]
[1725349687312,0.1104,59116.0,59115.0,0.43689414]
[1725349689401,0.1104,59116.0,59115.0,1.54437414]
[1725349689813,0.0004,59116.0,59115.0,1.84203514]
[1725349689997,0.2339,59123.0,59122.0,0.067653]
[1725349689998,0.0039,59123.0,59122.0,0.067653]
[1725349690198,0.0039,59130.0,59125.0,0.067649]
[1725349690408,0.0039,59133.0,59125.0,0.298049]
[1725349690913,0.2339,59133.0,59125.0,0.365698]
[1725349691612,0.01025359,59126.0,59125.0,0.366698]
[1725349692314,5.9e-07,59126.0,59125.0,1.903547]
[1725349694212,5.9e-07,59126.0,59125.0,1.902547]
[1725349694514,5.9e-07,59126.0,59125.0,1.901547]
[1725349694812,0.00025359,59131.0,59130.0,0.135288]
[1725349695016,0.05025359,59131.0,59130.0,0.496488]
[1725349699301,0.05025359,59131.0,59130.0,0.135688]
[1725349699516,0.05025359,59131.0,59130.0,0.496488]
[1725349700207,0.05025359,59131.0,59130.0,0.726488]
[1725349700409,0.05025359,59131.0,59130.0,1.833848]
[1725349700611,0.00025359,59131.0,59130.0,1.833848]
[1725349702322,0.07025359,59131.0,59130.0,1.833848]
[1725349706920,0.07025359,59131.0,59130.0,1.473048]
[1725349707107,0.07025359,59131.0,59130.0,1.833848]
[1725349708007,0.07025359,59131.0,59130.0,1.693848]
[1725349708519,0.07025359,59131.0,59130.0,1.003848]
[1725349708818,0.16025359,59131.0,59130.0,1.003848]
[1725349709120,0.07025359,59131.0,59130.0,0.496488]
[1725349709417,0.07025359,59131.0,59130.0,1.003848]
[1725349710012,0.07025359,59131.0,59130.0,0.135688]
[1725349710211,0.07025359,59131.0,59130.0,0.496488]
[1725349711838,0.067648,59126.0,59120.0,0.3608]
[1725349712009,0.0904,59123.0,59117.0,0.067658]
[1725349712211,0.2104,59123.0,59115.0,0.00415359]
[1725349712522,0.2566,59123.0,59122.0,0.068053]
[1725349713016,0.2566,59123.0,59122.0,0.067653]
[1725349713218,0.1666,59123.0,59122.0,0.067653]
[1725349713406,0.1204,59123.0,59122.0,0.157653]
[1725349713714,0.1204,59123.0,59122.0,1.625893]
[1725349713715,0.0004,59123.0,59122.0,1.625893]
[1725349714017,0.0004,59123.0,59122.0,1.693546]
[1725349714215,0.0004,59123.0,59122.0,1.75182891]
[1725349714418,0.0004,59123.0,59122.0,3.40182891]
[1725349715317,0.0004,59123.0,59122.0,3.351546]
[1725349716007,0.0004,59123.0,59122.0,3.49581061]
[1725349718116,0.0004,59123.0,59122.0,3.48781061]
[1725349718312,0.0014,59123.0,59122.0,3.48781061]
[1725349719114,0.0004,59123.0,59122.0,3.48781061]
[1725349719314,0.0004,59123.0,59122.0,1.23781061]
[1725349719618,0.1004,59123.0,59122.0,0.94015761]
[1725349720115,0.1004,59123.0,59122.0,1.54015761]
[1725349720315,0.0004,59123.0,59122.0,1.54015761]
[1725349720523,0.0004,59123.0,59122.0,1.77015761]
[1725349721414,0.0004,59123.0,59122.0,0.43271761]
[1725349721618,0.0004,59123.0,59122.0,0.66271761]
[1725349723823,0.0024,59123.0,59122.0,0.71310845]
[1725349724219,0.0024,59123.0,59122.0,0.66271761]
[1725349724426,0.0014,59123.0,59122.0,0.66271761]
[1725349724627,0.0014,59123.0,59122.0,0.71310888]
[1725349729227,0.1214,59123.0,59122.0,0.71310888]
[1725349730733,0.1214,59123.0,59122.0,0.66271761]
[1725349732931,0.0014,59123.0,59122.0,0.66271761]
[1725349735936,0.0014,59123.0,59122.0,0.52271761]
[1725349739930,0.0014,59123.0,59122.0,0.88351761]
[1725349745036,0.0014,59123.0,59122.0,0.79351761]
[1725349747242,0.0314,59123.0,59122.0,0.79351761]
[1725349747443,0.0314,59123.0,59122.0,0.00426461]
[1725349747752,0.0314,59123.0,59120.0,0.05052017]
[1725349747945,0.067655,59120.0,59119.0,0.05052017]
[1725349748252,0.278055,59120.0,59119.0,0.05052017]
[1725349748449,0.067657,59118.0,59117.0,0.05052017]
[1725349748645,0.067657,59118.0,59115.0,0.42839913]
[1725349748646,0.258057,59118.0,59115.0,0.42839913]
[1725349748947,0.258057,59118.0,59117.0,0.05050049]
[1725349749547,0.257057,59118.0,59116.0,0.05050049]
[1725349749844,0.0004,59117.0,59116.0,0.05050049]
[1725349750042,0.1104,59117.0,59116.0,0.05050049]
[1725349750249,0.1064,59117.0,59116.0,0.05050049]
[1725349751051,0.174059,59117.0,59116.0,0.05050049]
[1725349751240,0.174059,59117.0,59115.0,0.48013508]
[1725349751435,0.06766,59116.0,59115.0,0.41155408]
[1725349751745,0.18766,59116.0,59115.0,0.36105359]
[1725349752338,0.27766,59116.0,59115.0,0.36105359]
[1725349752647,0.78514,59116.0,59115.0,0.36105359]
[1725349752836,0.82564,59116.0,59115.0,0.36105359]
[1725349753549,0.82664,59116.0,59115.0,0.36705359]
[1725349754043,0.82464,59116.0,59115.0,0.36705359]
[1725349754638,0.82464,59116.0,59115.0,0.00625359]
[1725349754843,0.82464,59116.0,59115.0,0.01425359]
[1725349755436,1.4923,59116.0,59115.0,0.01425359]
[1725349757849,1.4923,59116.0,59115.0,0.00625359]
[1725349758046,1.4913,59116.0,59115.0,0.00325359]
[1725349758246,1.4913,59116.0,59115.0,0.00425359]
[1725349762849,1.8521,59116.0,59115.0,0.00425359]
[1725349765056,1.2521,59116.0,59115.0,0.00425359]
[1725349765640,0.8913,59116.0,59115.0,0.00425359]
[1725349765847,1.8521,59116.0,59115.0,0.00425359]
[1725349766047,1.2521,59116.0,59115.0,0.00425359]
[1725349766762,1.8521,59116.0,59115.0,0.00425359]
[1725349767051,1.2521,59116.0,59115.0,0.00425359]
[1725349767355,1.8521,59116.0,59115.0,0.00425359]
[1725349767555,1.2521,59116.0,59115.0,0.00425359]
[1725349767755,1.8521,59116.0,59115.0,0.00425359]
[1725349768057,1.2521,59116.0,59115.0,0.00425359]
[1725349771461,0.12,59116.0,59115.0,0.07191459]
[1725349771852,0.12,59116.0,59115.0,0.21861778]
[1725349773048,0.21,59116.0,59115.0,0.21451459]
[1725349779564,0.27766,59116.0,59115.0,0.21451459]
[1725349780960,0.27766,59116.0,59115.0,0.00425359]
[1725349782063,1.38514,59116.0,59115.0,0.00425359]
[1725349783064,1.38933099,59116.0,59115.0,0.00425359]
[1725349783662,0.78933099,59116.0,59115.0,0.00425359]
[1725349784164,0.28185099,59116.0,59115.0,0.00425359]
[1725349787456,1.38933099,59116.0,59115.0,0.00425359]
[1725349787656,0.28185099,59116.0,59115.0,0.00425359]
[1725349789253,0.18766,59116.0,59115.0,0.00425359]
[1725349789661,0.12,59116.0,59115.0,0.07191459]
[1725349793060,0.12,59116.0,59115.0,0.43271459]
[1725349796566,0.12,59116.0,59115.0,0.07191459]
[1725349800963,0.12,59116.0,59115.0,0.12241508]
[1725349801165,0.12,59116.0,59115.0,0.43271459]
[1725349801467,0.12,59116.0,59115.0,0.50006013]
[1725349802164,0.12,59116.0,59115.0,0.43271459]
[1725349803167,0.12,59116.0,59115.0,0.94019459]
[1725349803361,0.12,59116.0,59115.0,1.54019459]
[1725349803558,0.12,59116.0,59115.0,1.60785559]
[1725349803768,0.0039,59124.0,59121.0,0.067654]
[1725349803970,0.0039,59124.0,59123.0,0.428452]
[1725349803971,0.04,59124.0,59123.0,0.428452]
[1725349804269,0.04,59124.0,59123.0,0.428852]
[1725349804965,0.04,59124.0,59123.0,0.47930313]
[1725349805277,0.04,59124.0,59123.0,0.428852]
[1725349805777,0.04,59124.0,59123.0,0.429852]
[1725349805778,0.047,59124.0,59123.0,0.429852]
[1725349806568,0.05,59124.0,59123.0,0.429852]
[1725349807364,0.047,59124.0,59123.0,0.429852]
[1725349807562,0.047,59124.0,59123.0,0.937252]
[1725349807563,0.051,59124.0,59123.0,0.937252]
[1725349808767,0.051,59124.0,59123.0,0.94139474]
[1725349808969,0.011,59124.0,59123.0,0.94139474]
[1725349810169,0.011,59124.0,59123.0,1.30219474]
[1725349813168,0.011,59124.0,59123.0,0.79479474]
[1725349817880,0.011,59124.0,59123.0,0.07319474]
[1725349818074,0.121,59124.0,59123.0,0.07319474]
[1725349818272,0.121,59124.0,59123.0,0.43399474]
[1725349826088,0.121,59124.0,59123.0,0.07319474]
[1725349826280,0.121,59124.0,59123.0,0.43399474]
[1725349830881,0.121,59124.0,59123.0,0.50164674]
[1725349831083,0.121,59124.0,59123.0,0.56896326]
[1725349831290,0.011,59124.0,59123.0,0.50164674]
[1725349832788,0.021,59124.0,59123.0,0.50164674]
[1725349834992,0.021,59124.0,59123.0,0.59164674]
[1725349839703,0.021,59124.0,59123.0,0.95244674]
[1725349840491,0.021,59124.0,59123.0,0.88479474]
[1725349840696,0.021,59124.0,59123.0,0.79479474]
[1725349840897,0.021,59124.0,59123.0,0.86215432]
[1725349842097,0.021,59124.0,59123.0,0.50135432]
[1725349843004,0.021,59124.0,59123.0,0.14055432]
[1725349843300,0.021,59124.0,59123.0,0.43399474]
[1725349845501,0.021,59124.0,59123.0,0.48451921]
[1725349846097,0.088651,59124.0,59123.0,0.3622]
[1725349848001,0.088651,59124.0,59123.0,0.0014]
[1725349848197,0.088651,59124.0,59123.0,0.3622]
[1725349850414,0.088651,59124.0,59123.0,0.0014]
[1725349859921,0.021,59124.0,59123.0,0.519852]
[1725349860218,0.021,59124.0,59123.0,0.57037647]
[1725349860519,0.021,59124.0,59123.0,2.22037647]
[1725349860714,0.021,59124.0,59123.0,2.169852]
[1725349864219,0.021,59124.0,59123.0,2.530652]
[1725349864517,0.021,59124.0,59123.0,0.880652]
[1725349866223,0.021,59124.0,59123.0,0.93111179]
[1725349867118,0.111,59124.0,59123.0,0.790652]
[1725349869616,0.111,59124.0,59123.0,0.429852]
[1725349877620,0.178651,59124.0,59123.0,0.0014]
[1725349877923,0.178651,59124.0,59123.0,0.3622]
[1725349878422,0.178651,59124.0,59123.0,0.41265979]
[1725349878614,0.111,59124.0,59123.0,0.48031179]
[1725349881127,0.111,59124.0,59123.0,0.429852]
[1725349883518,0.111,59124.0,59123.0,0.48031179]
[1725349883721,0.111,59124.0,59123.0,0.429852]
[1725349885128,0.111,59124.0,59123.0,0.48031179]
[1725349885324,0.111,59124.0,59123.0,0.429852]
[1725349886131,0.111,59124.0,59123.0,0.48031179]
[1725349888229,0.111,59124.0,59123.0,0.429852]
[1725349888532,0.111,59124.0,59123.0,0.480377]
[1725349889125,0.111,59124.0,59123.0,0.429852]
[1725349890325,0.111,59124.0,59123.0,0.48039145]
[1725349891029,0.111,59124.0,59123.0,0.11959145]
[1725349891334,0.178651,59124.0,59123.0,0.069052]
[1725349894530,0.178651,59124.0,59123.0,0.0014]
[1725349895132,0.178651,59124.0,59123.0,0.05193945]
[1725349896330,0.178651,59124.0,59123.0,0.0014]
[1725349897033,0.178651,59124.0,59123.0,0.069052]
[1725349898032,0.178651,59124.0,59123.0,0.429852]
[1725349899737,0.111,59124.0,59123.0,0.069052]
[1725349899937,0.111,59124.0,59123.0,0.429852]
[1725349903542,0.021,59124.0,59123.0,0.429852]
[1725349903741,0.021,59124.0,59123.0,0.49721158]
[1725349904044,0.021,59124.0,59123.0,0.58721158]
[1725349904245,0.021,59124.0,59123.0,0.519852]
[1725349907443,0.021,59124.0,59123.0,0.429852]
[1725349911237,0.021,59124.0,59123.0,0.49722277]
[1725349911437,0.021,59124.0,59123.0,0.58722277]
[1725349912542,0.021,59124.0,59123.0,0.519852]
[1725349913640,0.111,59124.0,59123.0,0.429852]
[1725349915245,0.111,59124.0,59123.0,0.069052]
[1725349915440,0.111,59124.0,59123.0,0.790652]
[1725349917147,0.021,59124.0,59123.0,0.880652]
[1725349917547,0.111,59124.0,59123.0,0.790652]
[1725349919358,0.111,59124.0,59123.0,0.85798632]
[1725349920254,0.178651,59124.0,59123.0,0.0014]
[1725349925960,0.088651,59124.0,59123.0,0.0014]
[1725349926165,0.178651,59124.0,59123.0,0.3622]
[1725349927662,0.178651,59124.0,59123.0,0.0014]
[1725349928955,0.021,59124.0,59123.0,0.429852]
[1725349929566,0.021,59124.0,59123.0,0.48036268]
[1725349930064,0.021,59124.0,59123.0,0.429852]
[1725349930264,0.021,59124.0,59123.0,0.48036268]
[1725349930453,0.021,59124.0,59123.0,0.429852]
[1725349930868,0.021,59124.0,59123.0,0.48036268]
[1725349931264,0.021,59124.0,59123.0,0.429852]
[1725349931660,0.021,59124.0,59123.0,0.11956268]
[1725349931864,0.021,59124.0,59123.0,0.48036268]
[1725349932069,0.021,59124.0,59123.0,0.48036911]
[1725349932666,0.021,59124.0,59123.0,0.48036976]
[1725349933266,0.021,59124.0,59123.0,0.429852]
[1725349938964,0.021,59124.0,59123.0,0.069052]
[1725349940872,0.088651,59124.0,59123.0,0.0014]
[1725349945080,0.088651,59124.0,59123.0,0.069052]
[1725349948676,0.021,59124.0,59123.0,0.069052]
[1725349948983,0.021,59124.0,59123.0,0.11956976]
[1725349949477,0.021,59124.0,59123.0,0.069052]
[1725349952377,0.021,59124.0,59123.0,0.11963301]
[1725349952583,0.021,59124.0,59123.0,0.069052]
[1725349952892,0.088651,59124.0,59123.0,0.069052]
[1725349954182,0.088651,59124.0,59123.0,0.11963301]
[1725349955391,0.090081,59124.0,59123.0,0.11963301]
[1725349955788,0.090081,59124.0,59123.0,0.069052]
[1725349963495,0.090081,59124.0,59123.0,0.0014]
[1725349965298,0.136981,59124.0,59123.0,0.0014]
[1725349975410,0.090081,59124.0,59123.0,0.0014]
[1725349975603,0.180081,59124.0,59123.0,0.0014]
[1725349976902,0.180081,59124.0,59123.0,0.069052]
[1725349978607,0.178651,59124.0,59123.0,0.069052]
[1725349981510,0.111,59124.0,59123.0,0.069052]
[1725349982406,0.021,59124.0,59123.0,0.069052]
[1725349982614,0.021,59124.0,59123.0,0.52733301]
[1725349983216,0.021,59124.0,59123.0,0.476752]
[1725349983811,0.111,59124.0,59123.0,0.476752]
[1725349984018,0.111,59124.0,59123.0,0.52730421]
[1725349984519,0.111,59124.0,59123.0,0.476752]
[1725349987722,0.111,59124.0,59123.0,0.069052]
[1725349988824,0.178651,59124.0,59123.0,0.069052]
[1725349990817,0.178651,59124.0,59123.0,0.0014]
[1725349991421,0.178651,59124.0,59115.0,0.06791459]
[1725349991422,0.06766,59116.0,59115.0,0.00025359]
[1725349991627,0.26766,59116.0,59115.0,0.00025359]
[1725349991828,0.26806,59116.0,59115.0,0.00025359]
[1725349993023,0.1104,59116.0,59115.0,0.06791459]
[1725349993230,0.1104,59116.0,59115.0,0.15791459]
[1725349993429,0.1104,59116.0,59115.0,0.30391459]
[1725349993819,0.1104,59116.0,59115.0,0.21391459]
[1725349994225,0.1104,59116.0,59115.0,0.3544668]
[1725349994417,0.1104,59116.0,59115.0,0.30391459]
[1725349995127,0.1104,59116.0,59115.0,0.30491459]
[1725349997126,0.1104,59116.0,59115.0,0.66571459]
[1725349997520,0.1104,59116.0,59115.0,0.73304891]
[1725349999321,0.1104,59116.0,59115.0,0.66571459]
[1725349999518,0.1104,59116.0,59115.0,0.73304891]
[1725350000639,0.1104,59116.0,59115.0,0.66571459]
[1725350003925,0.1104,59116.0,59115.0,0.30491459]
[1725350004129,0.1104,59116.0,59115.0,0.66571459]
[1725350004431,0.1104,59116.0,59115.0,0.37224891]
[1725350004630,0.1104,59116.0,59115.0,0.66571459]
[1725350008143,0.1104,59116.0,59115.0,0.30491459]
[1725350008342,0.1104,59116.0,59115.0,0.66571459]
[1725350008533,0.1104,59116.0,59115.0,0.57571459]
[1725350008734,0.1104,59116.0,59115.0,0.66571459]
[1725350011141,0.1104,59116.0,59115.0,0.30491459]
[1725350011742,0.1104,59116.0,59115.0,0.66571459]
[1725350014636,0.1104,59116.0,59115.0,0.7330793]
[1725350016445,0.1104,59116.0,59115.0,0.3722793]
[1725350016739,0.1104,59116.0,59115.0,0.7330793]
[1725350018036,0.1104,59116.0,59115.0,0.3722793]
[1725350018244,0.1104,59116.0,59115.0,0.7330793]
[1725350018745,0.1104,59116.0,59115.0,0.3722793]
[1725350018947,0.1104,59116.0,59115.0,0.7330793]
[1725350020440,0.1104,59116.0,59115.0,0.66571459]
[1725350021549,0.1104,59116.0,59115.0,1.24085559]
[1725350021746,0.0004,59116.0,59115.0,1.92506148]
[1725350021947,0.0004,59116.0,59115.0,2.05393417]
[1725350022150,0.0004,59116.0,59115.0,3.61972828]
[1725350024943,0.0004,59116.0,59115.0,2.36624828]
[1725350025251,0.0904,59116.0,59115.0,0.42971459]
[1725350026038,0.0004,59116.0,59115.0,0.42971459]
[1725350026550,0.0004,59116.0,59115.0,0.43271459]
[1725350027048,0.0004,59116.0,59115.0,0.58466993]
[1725350027242,0.0004,59116.0,59115.0,0.6292473]
[1725350027448,0.0004,59116.0,59115.0,0.7135282]
[1725350028053,0.0039,59123.0,59122.0,0.067653]
[1725350028255,0.12,59123.0,59122.0,0.4508]
[1725350028752,0.12,59123.0,59122.0,0.586106]
[1725350028946,0.12,59123.0,59122.0,0.586506]
[1725350029144,0.13,59123.0,59122.0,0.587506]
[1725350030843,0.13,59123.0,59122.0,0.59173117]
[1725350032450,0.13,59123.0,59122.0,0.64227774]
[1725350032653,0.13,59123.0,59122.0,0.57462474]
[1725350033347,0.13,59123.0,59122.0,0.21382474]
[1725350033647,0.13,59123.0,59122.0,0.57462474]
[1725350034051,0.13,59123.0,59122.0,0.48462474]
[1725350034360,0.22,59123.0,59122.0,0.43407817]
[1725350035553,0.1496,59129.0,59125.0,0.067649]
[1725350035747,0.09,59126.0,59125.0,0.067649]
[1725350035944,0.2,59126.0,59125.0,0.067649]
[1725350036859,0.21,59126.0,59125.0,0.069649]
[1725350043459,0.12,59126.0,59125.0,0.069649]
[1725350043648,0.21,59126.0,59125.0,0.069649]
[1725350047159,0.12,59126.0,59125.0,0.069649]
[1725350053056,0.12,59126.0,59125.0,0.12019557]
[1725350053869,0.12,59126.0,59125.0,0.069649]
[1725350054769,0.12,59126.0,59125.0,0.430449]
[1725350057254,0.12,59126.0,59125.0,0.48100101]
[1725350057861,0.12,59126.0,59125.0,0.12020101]
[1725350058165,0.12,59126.0,59125.0,0.48100101]
[1725350059573,0.12,59126.0,59125.0,0.12020101]
[1725350059764,0.12,59126.0,59125.0,0.48100101]
[1725350059965,0.12,59126.0,59125.0,0.57100101]
[1725350060768,0.12,59126.0,59125.0,0.159649]
[1725350060966,0.12,59126.0,59125.0,0.520449]
[1725350065571,0.12,59126.0,59125.0,0.74741561]
[1725350067471,0.12,59126.0,59125.0,0.679998]
[1725350068377,0.12143,59126.0,59125.0,0.520449]
[1725350071572,0.12143,59126.0,59125.0,0.159649]
[1725350071775,0.12143,59126.0,59125.0,0.520449]
[1725350072377,0.12143,59126.0,59125.0,0.430449]
[1725350072581,0.12143,59126.0,59125.0,0.48095255]
[1725350072773,0.12143,59126.0,59125.0,0.48095399]
[1725350073779,0.21143,59126.0,59125.0,0.430449]
[1725350074374,0.12143,59126.0,59125.0,0.48095399]
[1725350075775,0.12143,59126.0,59125.0,0.430449]
[1725350076780,0.12143,59126.0,59125.0,0.57095399]
[1725350078497,0.12143,59126.0,59125.0,0.21015399]
[1725350078688,0.12143,59126.0,59125.0,0.57095399]
[1725350078993,0.12143,59126.0,59125.0,0.520449]
[1725350082991,0.12143,59126.0,59125.0,0.430449]
[1725350083494,0.12143,59126.0,59125.0,0.520449]
[1725350083890,0.12143,59126.0,59125.0,0.58786661]
[1725350084689,0.12143,59126.0,59125.0,0.520449]
[1725350089091,0.12143,59126.0,59125.0,0.159649]
[1725350089498,0.12143,59126.0,59125.0,0.520449]
[1725350090203,0.12143,59126.0,59125.0,0.159649]
[1725350090498,0.12143,59126.0,59125.0,0.520449]
[1725350091095,0.12143,59126.0,59125.0,0.159649]
[1725350091295,0.12143,59126.0,59125.0,0.520449]
[1725350091495,0.12143,59126.0,59125.0,0.430449]
[1725350093001,0.12,59126.0,59125.0,0.430449]
[1725350098002,0.12,59126.0,59125.0,0.520449]
[1725350098804,0.12,59126.0,59125.0,0.58782087]
[1725350102408,0.12,59126.0,59125.0,0.49782087]
[1725350102706,0.12,59126.0,59125.0,0.430449]
[1725350105913,0.12,59126.0,59125.0,0.49782087]
[1725350107013,0.12,59126.0,59125.0,0.13702087]
[1725350107213,0.12,59126.0,59125.0,0.49782087]
[1725350107511,0.12143,59126.0,59125.0,0.49782087]
[1725350108525,0.12143,59126.0,59125.0,0.58782087]
[1725350110228,0.12143,59126.0,59125.0,0.520449]
[1725350113232,0.12143,59126.0,59125.0,0.58780477]
[1725350113622,0.12143,59126.0,59125.0,0.22700477]